Workbook

Sheet Normal oversigt
A7: Elev type:
A8: Feriepenge | B8: 0.125 | E8: Samlet opsparing | G8: 0.056
A9: Løn ½. År | B9: =Beregninger!C46 -> 2552 | C9: Kr/uge | E9: Løn 3. år | G9: =Beregninger!C48 -> 3523 | H9: Kr/uge
A10: Løn 2. år | B10: =Beregninger!C47 -> 2950 | C10: Kr/uge | E10: Løn 4. år | G10: =Beregninger!C49 -> 4237 | H10: Kr/uge
A11: Forsikring per elev | B11: 4600 | C11: kr/år | E11: Bogpakke 1. skoleoph. | G11: 1500 | H11: kr.
A12: Befordringsgodtgørelse | B12: 100 | C12: kr/uge* | E12: Antal uger praktik | G12: =IF(Beregninger!C41=6,0,Beregninger!C41) -> 126 | H12: Uger
A13: Udgifter Skolehjem | B13: 500 | C13: kr/uge | E13: Antal uger skole | G13: =Beregninger!C36 -> 56 | H13: Uger
A14: Refusion Skolehjem | B14: 500 | C14: kr/uge | E14: Pension | G14: =Beregninger!C50 -> 0.051
A15: Sundhedsforsikring | B15: =Beregninger!C51 -> 0 | C15: kr/mnd
E19: Refusion/tilskud | G19: Udgifter
A20: Lønudgift praktik og skole periode | G20: =(Beregninger!C41+Beregninger!C36)*Beregninger!C42 -> 465920
A21: Ferietillæg | G21: =G20*B8 -> 58240
A22: Pension | G22: =G20*Beregninger!C43 -> 1323212800
A23: Refusion for skole periode | E23: =Beregninger!C36*Beregninger!C37 -> 336
A24: Forsikring | G24: =B11 -> 4600
A25: Udgifter skolehjem | G25: =Beregninger!C36*B13 -> 28000
A26: Refusion skolehjem | E26: =Beregninger!C36*B14 -> 28000
A27: Løntilskud for vokse over 25 år EUV 2 og 3 elever | E27: =B15*Beregninger!C41*37 -> 0
A28: Befordringsgodtgørelse | G28: =B12*Beregninger!C36 -> 5600
A29: Bogpakke | G29: =VLOOKUP(Beregninger!B3,Beregninger!A5:J28,12, FALSE) -> 
C30: I alt kr.: | E30: =SUM(E20:F29) -> 28336 | G30: =SUM(G20:H29) -> 
C31: Periodens udgift | G31: =G30-E30 -> 
A32: Bruttoudgift ½. år | F32: =(Beregninger!D46+(Beregninger!D46*G8)+(Beregninger!D46*B8))*(1+G14)+B11+(B12*Beregninger!C32)+(B15*6)+G11 -> 90458.15931
A33: Tilskud ½. år | F33: =Beregninger!D42 -> 51200
A34: Nettoudgift ½. år | F34: =F32-F33 -> 39258.15931
A35: Total udgift i skoletid minus refusion | F35: =(((G20+G21+G22)/(Beregninger!C41+Beregninger!C36))*Beregninger!C36)-E23+G28+G29 -> 
A36: Gns. per måned ½. år | F36: =F34/6 -> 6543.026552
A37: Gns. per time ½. år | F37: =F36/160.33 -> 40.80974585
A38: Gns. udgift per måned fordelt på praktikperiode alt incl. | F38: =(F34/(Beregninger!C38-4))*4.33 -> 5151.146358
A39: Gns. udgift per time fordelt på praktikperiode alt incl. | F39: =F38/160.33 -> 32.12839991
A41: Bruttoudgift 2. år | F41: =(Beregninger!D47+(Beregninger!D47*G8)+(Beregninger!D47*B8))*(1+G14)+B11+(B12*Beregninger!C33)+(B15*12) -> 196504.8354
A42: Tilskud 2. år | F42: =Beregninger!D43 -> 42600
A43: Nettoudgift 2. år | F43: =F41-F42 -> 153904.8354
A44: Gns. per måned 2. år | F44: =F43/12 -> 12825.40295
A45: Gns. per time 2. år | F45: =F44/160.33 -> 79.99378126
A46: Gns. udgift per måned fordelt på praktikperiode alt incl. | F46: =(F43/(Beregninger!C38-8))*4.33 -> 22979.58404
A47: Gns. udgift per time fordelt på praktikperiode alt incl. | F47: =F46/160.33 -> 143.3267888
A49: Bruttoudgift 3. år | F49: =(Beregninger!D48+(Beregninger!D48*G8)+(Beregninger!D48*B8))*(1+G14)+B11+(B12*Beregninger!C34)+(B15*12) -> 232788.5543
A50: Tilskud 3. år | F50: =Beregninger!D44 -> 25600
A51: Nettoudgift 3. år | F51: =F49-F50 -> 207188.5543
A52: Gns. per måned 3. år | F52: =F51/12 -> 17265.71286
A53: Gns. per time 3. år | F53: =F52/160.33 -> 107.6885976
A54: Gns. udgift per måned fordelt på praktikperiode alt incl. | F54: =(F51/(Beregninger!C39-8))*4.33 -> 24920.17889
A55: Gns. udgift per time fordelt på praktikperiode alt incl. | F55: =F54/160.33 -> 155.4305426
A57: Bruttoudgift 4. år | F57: =(Beregninger!D49+(Beregninger!D49*G8)+(Beregninger!D49*B8))*(1+G14)+B11+(B12*Beregninger!C35)+(B15*12) -> 279372.9788
A58: Tilskud 4. år | F58: =Beregninger!D45 -> 48880
A59: Nettoudgift 4. år | F59: =F57-F58 -> 230492.9788
A60: Gns. per måned 4. år OBS kun 6 mnd. | F60: =F59/12 -> 19207.74824
A61: Gns. per time 4. år | F61: =F60/160.33 -> 119.8013362
A62: Gns. udgift per måned fordelt på praktikperiode alt incl. | F62: =(F59/(Beregninger!C40-8))*4.33 -> 32194.66446
A63: Gns. udgift per time fordelt på praktikperiode alt incl. | F63: =F62/160.33 -> 200.8024978
A66: Gennemsnits pris per time arbejde | F66: =((F34+F43+F51+F59)/(G12-28))/37 -> 173.9780827
A67: Forudsætninger:
A68: *Befordringsgodtgørelse 80% af billigste offentlig transport refunderet estimat.
A69: AUB refusion er beregnet med 2018 tal for alle år.
A70: Ugeløn og pension under skole og praktik ophold er beregnet for hele året selvom dette reguleres pr. 1. marts
A71: Krav til forsikring iht overenskomst
A72: Ny mesterlære: Eleven er det første uddannelsesår i praktik.
A73: Skurpenge:
A74: Hvis forsvarligt skur- eller opholdsrum ikke anvises, ydes et dagligt beløb på 50,55 kr.
A75: regnet fra den lønningsuge hvor kravet stilles.
A76: Pr. 1. marts 2018 udgør satsen 53,02 kr. og pr. 1. marts 2019 er satsen 53,02 kr.
A77: Pensionsbidraget er beregnet af den samlede ferieberettigede løn, opsparing inkl. ferietillæg,
A78: fritvalgsopsparing samt feriepenge.
A79: Gns. udgift per måned fordelt på praktikperiode alt incl. Det vil sige per år er fratrukket
A80: 6 ugers ferie og 2 ugers søgnehelligdage og fridage.
A81: Evt. udgift til studietur 3000 kr.

Sheet Beregninger
B3: 2
B4: Elev type | C4: Varighed skole år 1 (uger) | D4: Varighed skole år 2 (uger) | E4: Varighed skole år 3 (uger) | F4: Varighed skole år 4 (uger) | G4: Varighed praktik år 1 (uger) | H4: Varighed praktik år 2 (uger) | I4: Varighed praktik år 3 (uger) | J4: Varighed praktik år 4 (uger) | K4: AUB refusion år 1 | L4: AUB refusion år 2 | M4: AUB refusion år 3 | N4: AUB refusion år 4 | O4: Løn år 1 | P4: Løn år 2 | Q4: Løn år 3 | R4: Løn år 4 | S4: pension | T4: sundheds-forsikring
A5: 1 | B5: Under 20 år med uddannelsesaftale | C5: 20 | D5: 15 | E5: 8 | F5: 13 | G5: 6 | H5: 37 | I5: 44 | J5: 39 | K5: 2560 | L5: 2840 | M5: 3200 | N5: 3760 | O5: 2552 | P5: 2950 | Q5: 3523 | R5: 4237 | S5: 0 | T5: 33
A6: 2 | B6: Mellem 20 og 25 år med uddannelsesaftale | C6: 20 | D6: 15 | E6: 8 | F6: 13 | G6: 6 | H6: 37 | I6: 44 | J6: 39 | K6: 2560 | L6: 2840 | M6: 3200 | N6: 3760 | O6: 2552 | P6: 2950 | Q6: 3523 | R6: 4237 | S6: 0.051 | T6: 0
A7: 3 | B7: Ny mesterlære under 20 år | C7: 4 | D7: 15 | E7: 8 | F7: 13 | G7: 22 | H7: 37 | I7: 44 | J7: 39 | K7: 2560 | L7: 2840 | M7: 3200 | N7: 3760 | O7: 2552 | P7: 2950 | Q7: 3523 | R7: 4237 | S7: 0 | T7: 33
A8: 4 | B8: Ny mesterlære mellem 20 og 25 år | C8: 4 | D8: 15 | E8: 8 | F8: 13 | G8: 22 | H8: 37 | I8: 44 | J8: 39 | K8: 2560 | L8: 2840 | M8: 3200 | N8: 3760 | O8: 2552 | P8: 2950 | Q8: 3523 | R8: 4237 | S8: 0.051 | T8: 0
A9: 5
A10: 6
A11: 7
A12: 8
A13: 9
A14: 10
A15: 11
A16: 12
A17: 13
A18: 14
A19: 15
A20: 16
A21: 17
A22: 18
A23: 19
A24: 20
A25: 21
A26: 22
A27: 23
A28: 24
A29: 25
D31: Årlig udgift /indtægt
B32: 1. år skole | C32: =VLOOKUP(Beregninger!B3,Beregninger!A5:T29,3, FALSE) -> 20
B33: 2. år skole | C33: =VLOOKUP(Beregninger!B3,Beregninger!A5:T29,4, FALSE) -> 15
B34: 3. år skole | C34: =VLOOKUP(Beregninger!B3,Beregninger!A5:T29,5, FALSE) -> 8
B35: 4. år skole | C35: =VLOOKUP(Beregninger!B3,Beregninger!A5:T29,6, FALSE) -> 13
B36: Valgt varighed skole | C36: =(VLOOKUP(Beregninger!B3,Beregninger!A5:T29,3, FALSE)+VLOOKUP(Beregninger!B3,Beregninger!A5:T29,4, FALSE)+VLOOKUP(Beregninger!B3,Beregninger!A5:T29,5, FALSE)+VLOOKUP(Beregninger!B3,Beregninger!A5:T29,6, FALSE)) -> 56
B37: 1. år praktik | C37: =VLOOKUP(Beregninger!B3,Beregninger!A5:T29,7, FALSE) -> 6
B38: 2. år praktik | C38: =VLOOKUP(Beregninger!B3,Beregninger!A5:T29,8, FALSE) -> 37
B39: 3. år praktik | C39: =VLOOKUP(Beregninger!B3,Beregninger!A5:T29,9, FALSE) -> 44
B40: 4. år praktik | C40: =VLOOKUP(Beregninger!B3,Beregninger!A5:T29,10, FALSE) -> 39
B41: Valgt varighed praktik | C41: =(VLOOKUP(Beregninger!B3,Beregninger!A5:T29,7, FALSE)+VLOOKUP(Beregninger!B3,Beregninger!A5:T29,8, FALSE)+VLOOKUP(Beregninger!B3,Beregninger!A5:T29,9, FALSE)+VLOOKUP(Beregninger!B3,Beregninger!A5:T29,10, FALSE)) -> 126
B42: AUB refusion år 1 | C42: =VLOOKUP(Beregninger!B3,Beregninger!A5:T29,11, FALSE) -> 2560 | D42: =C42*C32 -> 51200
B43: AUB refusion år 2 | C43: =VLOOKUP(Beregninger!B3,Beregninger!A5:T29,12, FALSE) -> 2840 | D43: =C43*C33 -> 42600
B44: AUB refusion år 3 | C44: =VLOOKUP(Beregninger!B3,Beregninger!A5:T29,13, FALSE) -> 3200 | D44: 25600
B45: AUB refusion år 4 | C45: =VLOOKUP(Beregninger!B3,Beregninger!A5:T29,14, FALSE) -> 3760 | D45: 48880
B46: Løn år1 | C46: =VLOOKUP(Beregninger!B3,Beregninger!A5:T29,15, FALSE) -> 2552 | D46: =C46*26 -> 66352
B47: Løn år2 | C47: =VLOOKUP(Beregninger!B3,Beregninger!A5:T29,16, FALSE) -> 2950 | D47: =C47*52 -> 153400
B48: Løn år3 | C48: =VLOOKUP(Beregninger!B3,Beregninger!A5:T29,17, FALSE) -> 3523 | D48: =C48*52 -> 183196
B49: løn år4 | C49: =VLOOKUP(Beregninger!B3,Beregninger!A5:T29,18, FALSE) -> 4237 | D49: 220324
B50: pension | C50: =VLOOKUP(Beregninger!B3,Beregninger!A5:T29,19, FALSE) -> 0.051
B51: sundhedsforsikring | C51: =VLOOKUP(Beregninger!B3,Beregninger!A5:T29,20, FALSE) -> 0
